fUST/lending_fUST_20241116
["ID","MTS","AMOUNT","RATE_DAILY","PERIOD"]
[342336076,1731747045633,-153.943284,0.00013698,2]
[342336077,1731747045643,-500.0,0.00013698,2]
[342336078,1731747045652,-500.0,0.00013698,2]
[342336079,1731747045662,-500.0,0.00013698,2]
[342336080,1731747045677,-500.0,0.00013698,2]
[342336081,1731747045687,-500.0,0.00013698,2]
[342336082,1731747045696,-500.0,0.00013698,2]
[342336083,1731747045706,-500.0,0.00013698,2]
[342336084,1731747045717,-511.8924814,0.00013698,2]
[342336085,1731747045727,-500.0,0.00013698,2]
[342336086,1731747045738,-500.0,0.00013698,2]
[342336087,1731747045750,-512.4592186,0.00013698,2]
[342336088,1731747045760,-500.0,0.00013698,2]
[342336089,1731747045770,-500.0,0.00013698,2]
[342336090,1731747045779,-500.0,0.00013698,2]
[342336092,1731747045789,-500.0,0.00013698,2]
[342336094,1731747045799,-500.0,0.00013698,2]
[342336095,1731747045808,-502.14170343,0.00013698,2]
[342336096,1731747045818,-242.54313123,0.00013698,2]
[342336097,1731747045827,-408.29561577,0.00013698,2]
[342336098,1731747045837,-529.54,0.00013698,2]
[342336099,1731747045847,-500.0,0.00013698,2]
[342336100,1731747045856,-500.0,0.00013698,2]
[342336101,1731747045865,-500.0,0.00013698,2]
[342336102,1731747045874,-500.0,0.00013698,2]
[342336103,1731747045884,-500.0,0.00013698,2]
[342336104,1731747045893,-504.28567264,0.00013698,2]
[342336105,1731747045903,-500.0,0.00013698,2]
[342336106,1731747045913,-157.62611313,0.00013698,2]
[342336107,1731747045925,-500.0,0.00013698,2]
[342336108,1731747045934,-500.0,0.00013698,2]
[342336109,1731747045944,-500.0,0.00013698,2]
[342336111,1731747045953,-500.0,0.00013698,2]
[342336113,1731747045962,-613.56,0.00013698,2]
[342336114,1731747045971,-500.0,0.00013698,2]
[342336115,1731747045981,-500.0,0.00013698,2]
[342336116,1731747045990,-500.0,0.00013698,2]
[342336117,1731747045999,-500.0,0.00013698,2]
[342336119,1731747046009,-500.0,0.00013698,2]
[342336121,1731747046018,-159.42128442,0.00013698,2]
[342336122,1731747046028,-500.0,0.00013698,2]
[342336123,1731747046037,-500.0,0.00013698,2]
[342336124,1731747046047,-427.66726057,0.00013698,2]
[342336125,1731747046056,-500.0,0.00013698,2]
[342336127,1731747046066,-502.2710908,0.00013698,2]
[342336128,1731747046075,-379.2221977,0.00013698,2]
[342336129,1731747046085,-500.0,0.00013698,2]
[342336130,1731747046094,-500.0,0.00013698,2]
[342336131,1731747046103,-573.2460291,0.00013698,2]
[342336132,1731747046112,-500.0,0.00013698,2]
[342336133,1731747046121,-500.0,0.00013698,2]
[342336135,1731747046131,-500.0,0.00013698,2]
[342336136,1731747046140,-500.0,0.00013698,2]
[342336137,1731747046150,-503.13263492,0.00013698,2]
[342336138,1731747046159,-503.04993699,0.00013698,2]
[342336139,1731747046168,-500.0,0.00013698,2]
[342336140,1731747046179,-500.0,0.00013698,2]
[342336141,1731747046188,-500.0,0.00013698,2]
[342336142,1731747046197,-500.0,0.00013698,2]
[342336143,1731747046208,-500.0,0.00013698,2]
[342336144,1731747046218,-503.00042022,0.00013698,2]
[342336145,1731747046227,-500.0,0.00013698,2]
[342336146,1731747046237,-500.0,0.00013698,2]
[342336147,1731747046247,-209.5884661,0.00013698,2]
[342336148,1731747046257,-500.0,0.00013698,2]
[342336149,1731747046267,-500.0,0.00013698,2]
[342336150,1731747046276,-500.0,0.00013698,2]
[342336151,1731747046285,-500.0,0.00013698,2]
[342336152,1731747046295,-500.0,0.00013698,2]
[342336154,1731747046304,-505.24828602,0.00013698,2]
[342336155,1731747046314,-500.0,0.00013698,2]
[342336156,1731747046323,-503.91734707,0.00013698,2]
[342336157,1731747046332,-500.0,0.00013698,2]
[342336158,1731747046341,-524.12791107,0.00013698,2]
[342336159,1731747046351,-500.0,0.00013698,2]
[342336160,1731747046360,-627.53505685,0.00013698,2]
[342336161,1731747046370,-520.47,0.00013698,2]
[342336162,1731747046379,-502.84597568,0.00013698,2]
[342336163,1731747046390,-1393.36162287,0.00013698,2]
[342336164,1731747046399,-500.24984787,0.00013698,2]
[342336165,1731747046410,-535.7612987,0.00013698,2]
[342336166,1731747046419,-407.29123897,0.00013698,2]
[342336167,1731747046430,-500.0,0.00013698,2]
[342336168,1731747046439,-500.0,0.00013698,2]
[342336169,1731747046449,-500.0,0.00013698,2]
[342336170,1731747046459,-500.0,0.00013698,2]
[342336171,1731747046469,-261.11840984,0.00013698,2]
[342336172,1731747046479,-500.0,0.00013698,2]
[342336173,1731747046488,-501.98148731,0.00013698,2]
[342336174,1731747046498,-500.0,0.00013698,2]
[342336175,1731747046507,-500.0,0.00013698,2]
[342336176,1731747046516,-500.42672527,0.00013698,2]
[342336177,1731747046526,-510.49315679,0.00013698,2]
[342336178,1731747046536,-500.0,0.00013698,2]
[342336179,1731747046546,-490.0,0.00013698,2]
[342336180,1731747046555,-501.56418058,0.00013698,2]
[342336181,1731747046565,-500.0,0.00013698,2]
[342336182,1731747046574,-503.22939724,0.00013698,2]
[342336183,1731747046584,-636.19042316,0.00013698,2]
[342336184,1731747046593,-2764.62,0.00013698,2]
[342336185,1731747046602,-500.0,0.00013698,2]
[342336186,1731747046612,-505.43088581,0.00013698,2]
[342336187,1731747046621,-500.0,0.00013698,2]
[342336188,1731747046631,-500.0,0.00013698,2]
[342336189,1731747046640,-500.0,0.00013698,2]
[342336190,1731747046650,-518.61664237,0.00013698,2]
[342336191,1731747046662,-2311.97,0.00013698,2]
[342336192,1731747046673,-500.0,0.00013698,2]
[342336193,1731747046682,-500.0,0.00013698,2]
[342336194,1731747046692,-504.40523156,0.00013698,2]
[342336195,1731747046702,-500.0,0.00013698,2]
[342336196,1731747046712,-500.0,0.00013698,2]
[342336197,1731747046721,-272.70159754,0.00013698,2]
[342336198,1731747046731,-500.0,0.00013698,2]
[342336199,1731747046741,-500.0,0.00013698,2]
[342336200,1731747046751,-500.0,0.00013698,2]
[342336201,1731747046760,-505.03341879,0.00013698,2]
[342336202,1731747046769,-593.88,0.00013698,2]
[342336203,1731747046778,-500.0,0.00013698,2]
[342336204,1731747046787,-502.44506904,0.00013698,2]
[342336205,1731747046797,-500.0,0.00013698,2]
[342336206,1731747046807,-500.0,0.00013698,2]
[342336207,1731747046816,-500.0,0.00013698,2]
[342336208,1731747046825,-500.0,0.00013698,2]
[342336209,1731747046835,-500.0,0.00013698,2]
[342336210,1731747046844,-500.0,0.00013698,2]
[342336211,1731747046854,-502.18914199,0.00013698,2]
[342336212,1731747046863,-500.0,0.00013698,2]
[342336213,1731747046872,-367.59630126,0.00013698,2]
[342336214,1731747046882,-502.26078085,0.00013698,2]
[342336215,1731747046891,-570.22,0.00013698,2]
[342336216,1731747046901,-503.99390527,0.00013698,2]
[342336217,1731747046910,-500.0,0.00013698,2]
[342336218,1731747046920,-503.01099498,0.00013698,2]
[342336219,1731747046931,-1004.58,0.00013698,2]
[342336220,1731747046941,-500.0,0.00013698,2]
[342336221,1731747046951,-500.0,0.00013698,2]
[342336222,1731747046960,-313.13263469,0.00013698,2]
[342336223,1731747046970,-500.0,0.00013698,2]
[342336224,1731747046979,-500.0,0.00013698,2]
[342336225,1731747046989,-500.0,0.00013698,2]
[342336226,1731747046998,-500.0,0.00013698,2]
[342336227,1731747047008,-1258.01,0.00013698,2]
[342336228,1731747047017,-503.82895621,0.00013698,2]
[342336229,1731747047027,-500.40818611,0.00013698,2]
[342336230,1731747047036,-504.19030199,0.00013698,2]
[342336231,1731747047045,-501.42013467,0.00013698,2]
[342336232,1731747047054,-503.0157813,0.00013698,2]
[342336233,1731747047064,-512.51006641,0.00013698,2]
[342336234,1731747047073,-500.0,0.00013698,2]
[342336235,1731747047082,-2541.57,0.00013698,2]
[342336236,1731747047091,-500.0,0.00013698,2]
[342336237,1731747047101,-500.98937908,0.00013698,2]
[342336238,1731747047110,-500.0,0.00013698,2]
[342336239,1731747047119,-457.0038418,0.00013698,2]
[342336240,1731747047128,-500.0,0.00013698,2]
[342336241,1731747047137,-500.0,0.00013698,2]
[342336242,1731747047146,-525.57534053,0.00013698,2]
[342336243,1731747047156,-500.0,0.00013698,2]
[342336244,1731747047165,-500.0,0.00013698,2]
[342336245,1731747047177,-500.0,0.00013698,2]
[342336246,1731747047186,-500.0,0.00013698,2]
[342336247,1731747047195,-500.0,0.00013698,2]
[342336248,1731747047204,-500.0,0.00013698,2]
[342336249,1731747047213,-500.0,0.00013698,2]
[342336250,1731747047222,-500.0,0.00013698,2]
[342336251,1731747047231,-501.64561722,0.00013698,2]
[342336252,1731747047240,-500.0,0.00013698,2]
[342336253,1731747047249,-500.0,0.00013698,2]
[342336254,1731747047259,-500.0,0.00013698,2]
[342336255,1731747047268,-500.0,0.00013698,2]
[342336256,1731747047277,-500.0,0.00013698,2]
[342336257,1731747047287,-555.47981219,0.00013698,2]
[342336258,1731747047296,-576.05296475,0.00013698,2]
[342336259,1731747047306,-500.0,0.00013698,2]
[342336260,1731747047315,-500.0,0.00013698,2]
[342336261,1731747047324,-500.0,0.00013698,2]
[342336262,1731747047334,-500.0,0.00013698,2]
[342336263,1731747047343,-235.24920097,0.00013698,2]
[342336264,1731747047353,-509.49475839,0.00013698,2]
[342336265,1731747047362,-500.0,0.00013698,2]
[342336266,1731747047371,-501.96004565,0.00013698,2]
[342336267,1731747047380,-500.0,0.00013698,2]
[342336268,1731747047390,-500.0,0.00013698,2]
[342336269,1731747047399,-420.28001895,0.00013698,2]
[342336270,1731747047408,-500.0,0.00013698,2]
[342336271,1731747047418,-500.0,0.00013698,2]
[342336272,1731747047428,-500.0,0.00013698,2]
[342336273,1731747047437,-500.0,0.00013698,2]
[342336274,1731747047446,-500.0,0.00013698,2]
[342336275,1731747047455,-503.27454125,0.00013698,2]
[342336276,1731747047464,-500.0,0.00013698,2]
[342336277,1731747047474,-500.0,0.00013698,2]
[342336278,1731747047483,-151.0,0.00013698,2]
[342336279,1731747047493,-151.0,0.00013698,2]
[342336280,1731747047502,-500.0,0.00013698,2]
[342336281,1731747047512,-151.0,0.00013698,2]
[342336282,1731747047521,-500.0,0.00013698,2]
[342336283,1731747047530,-151.0,0.00013698,2]
[342336284,1731747047540,-151.0,0.00013698,2]
[342336285,1731747047549,-151.0,0.00013698,2]
[342336286,1731747047558,-1929.41,0.00013698,2]
[342336287,1731747047568,-151.0,0.00013698,2]
[342336288,1731747047578,-151.0,0.00013698,2]
[342336289,1731747047587,-151.0,0.00013698,2]
[342336290,1731747047596,-466.82880715,0.00013698,2]
[342336291,1731747047606,-151.0,0.00013698,2]
[342336292,1731747047615,-155.082049,0.00013698,2]
[342336293,1731747047728,-500.0,0.00013698,2]
[342336294,1731747047739,-500.0,0.00013698,2]
[342336295,1731747047748,-500.0,0.00013698,2]
[342336296,1731747047757,-2336.0,0.00013698,2]
[342336297,1731747047767,-500.0,0.00013698,2]
[342336298,1731747047777,-500.0,0.00013698,2]
[342336299,1731747047786,-501.72363247,0.00013698,2]
[342336300,1731747047795,-500.0,0.00013698,2]
[342336301,1731747047804,-526.19675618,0.00013698,2]
[342336302,1731747047814,-500.0,0.00013698,2]
[342336303,1731747047823,-825.24,0.00013698,2]
[342336304,1731747047833,-505.29912712,0.00013698,2]
[342336305,1731747047843,-825.24,0.00013698,2]
[342336306,1731747047852,-500.0,0.00013698,2]
[342336307,1731747047861,-825.24,0.00013698,2]
[342336308,1731747047871,-825.24,0.00013698,2]
[342336309,1731747047880,-825.24,0.00013698,2]
[342336310,1731747047891,-369.57813763,0.00013698,2]
[342336311,1731747047900,-825.24,0.00013698,2]
[342336312,1731747047910,-825.24,0.00013698,2]
[342336313,1731747047919,-509.66275579,0.00013698,2]
[342336314,1731747047931,-825.24,0.00013698,2]
[342336315,1731747047940,-825.24,0.00013698,2]
[342336316,1731747047949,-825.24,0.00013698,2]
[342336317,1731747047958,-523.4828914,0.00013698,2]
[342336318,1731747047967,-500.0,0.00013698,2]
[342336319,1731747047976,-825.24,0.00013698,2]
[342336320,1731747047986,-505.88499302,0.00013698,2]
[342336321,1731747047995,-500.0,0.00013698,2]
[342336322,1731747048004,-825.24,0.00013698,2]
[342336323,1731747048014,-500.0,0.00013698,2]
[342336324,1731747048023,-825.24,0.00013698,2]
[342336325,1731747048033,-500.0,0.00013698,2]
[342336326,1731747048042,-825.24,0.00013698,2]
[342336327,1731747048052,-401.16117472,0.00013698,2]
[342336328,1731747048061,-503.90916524,0.00013698,2]
[342336329,1731747048070,-825.24,0.00013698,2]
[342336330,1731747048079,-825.24,0.00013698,2]
[342336331,1731747048088,-825.24,0.00013698,2]
[342336332,1731747048097,-825.24,0.00013698,2]
[342336333,1731747048107,-502.36539064,0.00013698,2]
[342336334,1731747048116,-825.24,0.00013698,2]
[342336335,1731747048131,-825.24,0.00013698,2]
[342336336,1731747048140,-825.24,0.00013698,2]
[342336337,1731747048149,-825.24,0.00013698,2]
[342336338,1731747048159,-825.24,0.00013698,2]
[342336339,1731747048168,-825.25,0.00013698,2]
[342336340,1731747048182,-500.0,0.00013698,2]
[342336341,1731747048192,-500.0,0.00013698,2]
[342336342,1731747048202,-500.56201849,0.00013698,2]
[342336343,1731747048211,-500.0,0.00013698,2]
[342336344,1731747048220,-2039.06,0.00013698,2]
[342336345,1731747048230,-500.0,0.00013698,2]
[342336346,1731747048240,-500.48839464,0.00013698,2]
[342336347,1731747048249,-500.0,0.00013698,2]
[342336348,1731747048259,-537.24026883,0.00013698,2]
[342336349,1731747048269,-500.0,0.00013698,2]
[342336350,1731747048278,-500.0,0.00013698,2]
[342336351,1731747048288,-500.0,0.00013698,2]
[342336352,1731747048298,-500.0,0.00013698,2]
[342336353,1731747048307,-500.0,0.00013698,2]
[342336354,1731747048318,-607.31,0.00013698,2]
[342336355,1731747048328,-502.14924645,0.00013698,2]
[342336356,1731747048339,-500.0,0.00013698,2]
[342336357,1731747048352,-500.0,0.00013698,2]
[342336358,1731747048363,-500.0,0.00013698,2]
[342336359,1731747048372,-500.0,0.00013698,2]
[342336360,1731747048382,-500.0,0.00013698,2]
[342336361,1731747048391,-500.0,0.00013698,2]
[342336362,1731747048401,-500.0,0.00013698,2]
[342336363,1731747048410,-500.0,0.00013698,2]
[342336364,1731747048421,-500.43171787,0.00013698,2]
[342336365,1731747048433,-500.0,0.00013698,2]
[342336366,1731747048443,-500.0,0.00013698,2]
[342336367,1731747048453,-500.0,0.00013698,2]
[342336368,1731747048463,-1964.02,0.00013698,2]
[342336369,1731747048473,-500.0,0.00013698,2]
[342336370,1731747048483,-500.0,0.00013698,2]
[342336371,1731747048493,-500.0,0.00013698,2]
[342336372,1731747048502,-329.95,0.00013698,2]
[342336373,1731747048512,-500.0,0.00013698,2]
[342336374,1731747048522,-154.907847,0.00013698,2]
[342336375,1731747048532,-500.0,0.00013698,2]
[342336376,1731747048541,-500.0,0.00013698,2]
[342336377,1731747048551,-995.97,0.00013698,2]
[342336378,1731747048560,-500.0,0.00013698,2]
[342336379,1731747048570,-502.21598398,0.00013698,2]
[342336380,1731747048579,-500.0,0.00013698,2]
[342336381,1731747048589,-500.0,0.00013698,2]
[342336382,1731747048598,-500.0,0.00013698,2]
[342336383,1731747048608,-500.0,0.00013698,2]
[342336384,1731747048618,-500.0,0.00013698,2]
[342336385,1731747048627,-500.0,0.00013698,2]
[342336386,1731747048637,-500.0,0.00013698,2]
[342336387,1731747048646,-500.0,0.00013698,2]
[342336388,1731747048656,-500.0,0.00013698,2]
[342336389,1731747048670,-500.0,0.00013698,2]
[342336390,1731747048683,-500.78318807,0.00013698,2]
[342336391,1731747048693,-500.0,0.00013698,2]
[342336392,1731747048703,-500.0,0.00013698,2]
[342336393,1731747048712,-500.0,0.00013698,2]
[342336394,1731747048723,-515.68637616,0.00013698,2]
[342336395,1731747048734,-500.0,0.00013698,2]
[342336396,1731747048744,-553.77141362,0.00013698,2]
[342336397,1731747048754,-503.34554216,0.00013698,2]
[342336398,1731747048763,-500.0,0.00013698,2]
[342336399,1731747048773,-246.92996711,0.00013698,2]
[342336400,1731747048783,-500.0,0.00013698,2]
[342336401,1731747048792,-466.28868693,0.00013698,2]
[342336402,1731747048802,-500.0,0.00013698,2]
[342336403,1731747048811,-500.0,0.00013698,2]
[342336404,1731747048821,-500.0,0.00013698,2]
[342336405,1731747048833,-500.0,0.00013698,2]
[342336406,1731747048843,-500.0,0.00013698,2]
[342336407,1731747048853,-500.0,0.00013698,2]
[342336408,1731747048862,-500.74881569,0.00013698,2]
[342336409,1731747048872,-151.0,0.00013698,2]
[342336410,1731747048881,-151.0,0.00013698,2]
[342336411,1731747048891,-151.0,0.00013698,2]
[342336412,1731747048901,-500.0,0.00013698,2]
[342336413,1731747048910,-153.116597,0.00013698,2]
[342336414,1731747048920,-1388.31,0.00013698,2]
[342336415,1731747048933,-500.0,0.00013698,2]
[342336416,1731747048943,-500.0,0.00013698,2]
[342336417,1731747048952,-731.81,0.00013698,2]
[342336418,1731747048962,-500.0,0.00013698,2]
[342336419,1731747048971,-500.0,0.00013698,2]
[342336420,1731747048981,-500.0,0.00013698,2]
[342336421,1731747048990,-508.15706494,0.00013698,2]
[342336422,1731747049000,-500.0,0.00013698,2]
[342336423,1731747049009,-500.0,0.00013698,2]
[342336424,1731747049019,-501.58189079,0.00013698,2]
[342336425,1731747049028,-500.0,0.00013698,2]
[342336426,1731747049038,-507.68740939,0.00013698,2]
[342336427,1731747049048,-500.0,0.00013698,2]
[342336428,1731747049057,-536.85127849,0.00013698,2]
[342336429,1731747049066,-500.0,0.00013698,2]
[342336430,1731747049076,-501.56117736,0.00013698,2]
[342336431,1731747049086,-501.56763277,0.00013698,2]
[342336432,1731747049095,-500.0,0.00013698,2]
[342336433,1731747049104,-500.0,0.00013698,2]
[342336434,1731747049114,-500.0,0.00013698,2]
[342336435,1731747049123,-500.0,0.00013698,2]
[342336436,1731747049132,-500.0,0.00013698,2]
[342336437,1731747049142,-204.16196179,0.00013698,2]
[342336438,1731747049151,-500.0,0.00013698,2]
[342336439,1731747049160,-500.0,0.00013698,2]
[342336440,1731747049169,-500.0,0.00013698,2]
[342336441,1731747049180,-500.0,0.00013698,2]
[342336442,1731747049190,-500.0,0.00013698,2]
[342336443,1731747049199,-505.94484297,0.00013698,2]
[342336444,1731747049208,-500.0,0.00013698,2]
[342336445,1731747049218,-500.0,0.00013698,2]
[342336446,1731747049227,-500.0,0.00013698,2]
[342336447,1731747049236,-503.17333709,0.00013698,2]
[342336448,1731747049246,-500.0,0.00013698,2]
[342336449,1731747049255,-500.0,0.00013698,2]
[342336450,1731747049264,-500.0,0.00013698,2]
[342336451,1731747049274,-500.0,0.00013698,2]
[342336452,1731747049283,-500.0,0.00013698,2]
[342336453,1731747049293,-500.0,0.00013698,2]
[342336454,1731747049303,-500.0,0.00013698,2]
[342336455,1731747049312,-500.0,0.00013698,2]
[342336456,1731747049321,-500.0,0.00013698,2]
[342336457,1731747049331,-500.0,0.00013698,2]
[342336458,1731747049340,-397.01273069,0.00013698,2]
[342336459,1731747049349,-500.0,0.00013698,2]
[342336460,1731747049358,-500.0,0.00013698,2]
[342336461,1731747049366,-500.0,0.00013698,2]
[342336462,1731747049374,-500.0,0.00013698,2]
[342336463,1731747049382,-500.0,0.00013698,2]
[342336464,1731747049390,-507.94022975,0.00013698,2]
[342336465,1731747049399,-500.0,0.00013698,2]
[342336466,1731747049408,-151.0,0.00013698,2]
[342336467,1731747049417,-151.0,0.00013698,2]
[342336468,1731747049429,-151.0,0.00013698,2]
[342336469,1731747049438,-151.0,0.00013698,2]
[342336470,1731747049447,-151.0,0.00013698,2]
[342336471,1731747049456,-500.0,0.00013698,2]
[342336472,1731747049466,-151.0,0.00013698,2]
[342336473,1731747049475,-151.0,0.00013698,2]
[342336474,1731747049484,-242.912062,0.00013698,2]
[342336475,1731747049493,-512.42554444,0.00013698,2]
[342336476,1731747049503,-500.0,0.00013698,2]
[342336477,1731747049512,-501.53979776,0.00013698,2]
[342336478,1731747049521,-151.0,0.00013698,2]
[342336479,1731747049531,-500.0,0.00013698,2]
[342336480,1731747049540,-500.0,0.00013698,2]
[342336481,1731747049550,-151.0,0.00013698,2]
[342336482,1731747049560,-292.679232,0.00013698,2]
[342336483,1731747049569,-1030.83,0.00013698,2]
[342336484,1731747049579,-500.0,0.00013698,2]
[342336485,1731747049588,-502.86764448,0.00013698,2]
[342336486,1731747049598,-500.0,0.00013698,2]
[342336487,1731747049607,-500.0,0.00013698,2]
[342336488,1731747049616,-500.0,0.00013698,2]
[342336489,1731747049628,-500.0,0.00013698,2]
[342336490,1731747049638,-500.0,0.00013698,2]
[342336491,1731747049647,-501.03928564,0.00013698,2]
[342336492,1731747049657,-500.0,0.00013698,2]
[342336493,1731747049668,-501.14542074,0.00013698,2]
[342336494,1731747049681,-500.0,0.00013698,2]
[342336495,1731747049690,-500.0,0.00013698,2]
[342336496,1731747049699,-500.0,0.00013698,2]
[342336497,1731747049710,-500.0,0.00013698,2]
[342336498,1731747049720,-500.0,0.00013698,2]
[342336499,1731747049729,-3360.54,0.00013698,2]
[342336500,1731747049739,-500.0,0.00013698,2]
[342336501,1731747049751,-180.16504409,0.00013698,2]
[342336502,1731747049761,-500.0,0.00013698,2]
[342336503,1731747049771,-233.95501495,0.00013698,2]
[342336504,1731747049781,-342.02234279,0.00013698,2]
[342336505,1731747049791,-503.61124642,0.00013698,2]
[342336506,1731747049800,-500.0,0.00013698,2]
[342336507,1731747049809,-500.0,0.00013698,2]
[342336508,1731747049819,-512.68031505,0.00013698,2]
[342336509,1731747049828,-500.0,0.00013698,2]
[342336510,1731747049839,-17444.1,0.00013698,2]
[342336511,1731747049849,-500.21210359,0.00013698,2]
[342336512,1731747049859,-500.0,0.00013698,2]
[342336513,1731747049870,-502.55925771,0.00013698,2]
[342336514,1731747049879,-502.11974996,0.00013698,2]
[342336515,1731747049889,-502.28883783,0.00013698,2]
[342336516,1731747049898,-510.18,0.00013698,2]
[342336517,1731747049909,-500.0,0.00013698,2]
[342336518,1731747049919,-545.25442647,0.00013698,2]
[342336519,1731747049931,-528.62602519,0.00013698,2]
[342336520,1731747049941,-372.554215,0.00013698,2]
[342336521,1731747049952,-501.2039795,0.00013698,2]
[342336522,1731747049961,-372.554215,0.00013698,2]
[342336523,1731747049970,-528.12655917,0.00013698,2]
[342336524,1731747049980,-372.554215,0.00013698,2]
[342336525,1731747049990,-500.0,0.00013698,2]
[342336526,1731747050000,-372.554215,0.00013698,2]
[342336527,1731747050010,-500.0,0.00013698,2]
[342336528,1731747050020,-372.554215,0.00013698,2]
[342336529,1731747050030,-372.554215,0.00013698,2]
[342336530,1731747050039,-372.554215,0.00013698,2]
[342336531,1731747050048,-372.554215,0.00013698,2]
[342336532,1731747050058,-372.554215,0.00013698,2]
[342336533,1731747050067,-372.554215,0.00013698,2]
[342336534,1731747050077,-502.72903271,0.00013698,2]
[342336535,1731747050086,-1871.2,0.00013698,2]
[342336536,1731747050096,-372.554215,0.00013698,2]
[342336537,1731747050204,-567.6071908,0.00013698,2]
[342336538,1731747050214,-372.554215,0.00013698,2]
[342336539,1731747050223,-372.554215,0.00013698,2]
[342336540,1731747050234,-883.49,0.00013698,2]
[342336541,1731747050244,-372.554215,0.00013698,2]
[342336542,1731747050253,-509.50551747,0.00013698,2]
[342336543,1731747050263,-372.554215,0.00013698,2]
[342336544,1731747050273,-372.554215,0.00013698,2]
[342336545,1731747050282,-372.554215,0.00013698,2]
[342336546,1731747050292,-500.0,0.00013698,2]
[342336547,1731747050302,-372.554215,0.00013698,2]
[342336548,1731747050311,-372.554215,0.00013698,2]
[342336549,1731747050321,-372.55421225,0.00013698,2]
[342336550,1731747050331,-502.50273009,0.00013698,2]
[342336551,1731747050345,-500.0,0.00013698,2]
[342336552,1731747050355,-500.0,0.00013698,2]
[342336553,1731747050365,-500.0,0.00013698,2]
[342336554,1731747050375,-544.4,0.00013698,2]
[342336555,1731747050384,-500.0,0.00013698,2]
[342336556,1731747050394,-504.7619552,0.00013698,2]
[342336557,1731747050404,-522.59082359,0.00013698,2]
[342336558,1731747050413,-500.0,0.00013698,2]
[342336559,1731747050423,-160.37182072,0.00013698,2]
[342336560,1731747050433,-500.0,0.00013698,2]
[342336561,1731747050443,-1437.94,0.00013698,2]
[342336562,1731747050453,-500.0,0.00013698,2]
[342336563,1731747050462,-500.0,0.00013698,2]
[342336564,1731747050472,-500.0,0.00013698,2]
[342336565,1731747050481,-509.83181685,0.00013698,2]
[342336566,1731747050491,-501.41917426,0.00013698,2]
[342336567,1731747050500,-502.38143738,0.00013698,2]
[342336568,1731747050510,-500.0,0.00013698,2]
[342336569,1731747050520,-500.0,0.00013698,2]
[342336570,1731747050529,-647.66319098,0.00013698,2]
[342336571,1731747050539,-501.8688506,0.00013698,2]
[342336572,1731747050549,-516.2,0.00013698,2]
[342336573,1731747050559,-855.13,0.00013698,2]
[342336574,1731747050568,-580.03787735,0.00013698,2]
[342336575,1731747050578,-500.43813763,0.00013698,2]
[342336576,1731747050588,-519.90876115,0.00013698,2]
[342336577,1731747050598,-1910.55,0.00013698,2]
[342336578,1731747050607,-500.0,0.00013698,2]
[342336579,1731747050617,-503.01652284,0.00013698,2]
[342336580,1731747050626,-501.23904272,0.00013698,2]
[342336581,1731747050635,-501.84160811,0.00013698,2]
[342336582,1731747050645,-192.87809939,0.00013698,2]
[342336583,1731747050654,-500.0,0.00013698,2]
[342336584,1731747050664,-508.77626525,0.00013698,2]